bitfinex/quotes_ETHUSD_20241204
["timestamp","ask_amount","ask_price","bid_price","bid_amount"]
[1733272595517,1.3883,3639.7,3638.6,2.74823]
[1733272595746,1.3883,3639.7,3638.8,2.74815]
[1733272596065,1.3883,3639.4,3637.9,1.3867]
[1733272596216,0.45193108,3639.3,3638.0,0.65374536]
[1733272596414,0.45193108,3639.3,3637.8,3.0]
[1733272596616,0.45193108,3639.3,3638.2,2.7486]
[1733272596818,1.3883,3639.2,3638.2,2.7486]
[1733272597080,1.3883,3639.2,3637.9,2.74877]
[1733272597081,3.13101082,3639.1,3637.9,2.74877]
[1733272597239,1.3883,3638.9,3637.9,2.74877]
[1733272597760,1.3883,3638.9,3637.5,0.1394]
[1733272597932,1.3883,3638.9,3637.5,3.1394]
[1733272598131,3.58981193,3639.1,3637.1,2.74941]
[1733272598132,1.3883,3638.6,3637.1,2.74941]
[1733272598438,1.3883,3638.6,3637.5,2.74911]
[1733272598629,1.3883,3638.6,3637.1,2.74941]
[1733272598630,1.3883,3638.6,3637.6,2.74904]
[1733272598952,1.3883,3638.6,3637.4,2.74916]
[1733272599112,1.4147,3638.5,3637.4,0.274916]
[1733272599313,1.4147,3638.5,3636.8,5.74965]
[1733272599518,1.4147,3638.5,3637.7,2.74891]
[1733272599732,1.4147,3638.5,3637.0,0.02749066]
[1733272599959,1.4147,3638.5,3636.9,2.74959]
[1733272600163,1.4147,3638.5,3637.1,2.74944]
[1733272600365,1.4147,3638.5,3637.2,0.68349288]
[1733272600582,1.4147,3638.5,3637.3,0.64329329]
[1733272600721,1.4147,3638.5,3637.9,2.74883]
[1733272600921,1.4147,3638.5,3637.5,2.74912]
[1733272601261,1.4147,3638.5,3637.7,2.74894]
[1733272601755,1.4147,3638.5,3636.6,3.0]
[1733272601955,1.4147,3638.5,3638.0,2.74875]
[1733272602263,1.4147,3638.5,3638.4,2.74846]
[1733272602421,1.4147,3638.5,3638.1,2.74863]
[1733272602920,1.4147,3638.5,3637.7,2.74891]
[1733272603149,1.4147,3638.5,3637.0,1.3824]
[1733272603150,0.14147,3638.4,3637.0,4.13185]
[1733272603364,0.155617,3638.3,3637.2,2.74936]
[1733272603528,1.378,3638.2,3637.2,2.74936]
[1733272603733,1.378,3638.2,3637.3,2.74927]
[1733272603962,1.378,3638.2,3637.1,0.413185]
[1733272604123,1.378,3638.2,3637.4,2.74915]
[1733272604322,1.378,3638.2,3637.5,2.74909]
[1733272604951,1.378,3638.2,3637.7,2.74891]
[1733272605564,1.378,3638.2,3637.5,2.7491]
[1733272606064,1.378,3638.2,3637.1,1.4386]
[1733272606266,0.21322899,3639.0,3637.2,0.57927182]
[1733272606469,1.3797,3638.9,3638.1,2.74868]
[1733272606791,1.3797,3638.9,3638.0,1.4081]
[1733272606929,1.3797,3638.9,3638.1,0.49446354]
[1733272607322,1.3797,3638.9,3638.5,2.74835]
[1733272607529,1.3797,3638.9,3638.4,2.74845]
[1733272607730,1.3797,3638.9,3638.4,0.274845]
[1733272608027,1.3711,3639.3,3638.0,1.4081]
[1733272608229,1.3711,3639.3,3639.1,2.74793]
[1733272608461,1.3711,3639.3,3638.0,1.4081]
[1733272608663,1.3711,3639.3,3639.0,2.748]
[1733272608829,1.4363,3639.7,3639.1,2.74793]
[1733272609600,1.4363,3639.7,3638.6,2.7483]
[1733272609723,1.4363,3639.7,3639.1,2.74793]
[1733272610772,1.4363,3640.2,3639.1,2.74793]
[1733272610928,1.4363,3640.2,3639.1,3.2387682]
[1733272611129,1.4363,3640.2,3639.1,3.97494502]
[1733272612328,5.47e-06,3639.2,3639.1,6.97494502]
[1733272612575,1.62216107,3641.0,3640.6,2.74678]
[1733272612744,1.57101611,3641.0,3640.4,2.74691]
[1733272612949,1.57101611,3641.0,3639.5,3.0]
[1733272613246,1.57101611,3641.0,3639.7,2.74747]
[1733272613441,1.57101611,3641.0,3640.1,2.74714]
[1733272613648,1.57101611,3641.0,3639.7,2.74747]
[1733272613850,1.57101611,3641.0,3640.1,2.74717]
[1733272614354,1.57101611,3641.0,3639.5,2.74759]
[1733272614538,1.3889,3640.9,3639.2,1.3373]
[1733272614741,0.48957174,3640.8,3639.3,0.50251962]
[1733272614941,1.3889,3640.9,3639.8,2.74739]
[1733272615178,1.3889,3640.9,3639.9,0.49675099]
[1733272615550,1.3889,3640.9,3639.6,3.0]
[1733272615885,1.3889,3640.9,3640.0,2.74725]
[1733272616185,1.3889,3640.9,3640.1,2.74716]
[1733272617374,1.3889,3640.9,3639.7,0.574757]
[1733272617598,1.3889,3640.9,3640.3,2.74696]
[1733272618067,0.28648383,3640.8,3640.3,2.74696]
[1733272618774,0.28648383,3640.8,3639.7,0.574757]
[1733272618971,0.28648383,3640.8,3639.9,4.51491082]
[1733272619170,0.28648383,3640.8,3640.7,4.13062]
[1733272619366,1.444,3641.4,3640.9,2.74654]
[1733272619616,1.444,3641.4,3641.0,0.41526637]
[1733272620310,1.444,3641.4,3640.6,2.74674]
[1733272620616,1.444,3641.4,3640.7,2.74669]
[1733272620818,1.444,3641.4,3640.8,2.74663]
[1733272621310,1.444,3641.4,3641.0,2.74649]
[1733272621697,0.21343741,3642.4,3640.8,0.274663]
[1733272621874,1.363,3642.3,3641.1,2.74639]
[1733272622075,1.363,3642.3,3641.2,0.02746166]
[1733272622316,1.363,3642.3,3641.8,2.74585]
[1733272622475,1.363,3642.3,3641.5,2.74608]
[1733272622817,1.363,3642.3,3641.3,2.74626]
[1733272622987,1.363,3642.3,3641.4,0.36659134]
[1733272623187,1.363,3642.3,3641.5,2.74611]
[1733272623499,1.363,3642.3,3641.1,0.417864]
[1733272623500,1.363,3642.3,3641.2,2.74632]
[1733272623699,1.363,3642.3,3641.0,4.17869]
[1733272623895,0.410839,3642.2,3641.0,4.54528134]
[1733272624276,0.410839,3642.2,3641.1,2.74642]
[1733272624906,0.410839,3642.2,3641.2,2.74634]
[1733272625159,1.363,3642.3,3641.5,2.74611]
[1733272625330,1.363,3642.3,3641.7,2.74595]
[1733272625530,1.363,3642.3,3641.6,2.74597]
[1733272626317,1.363,3642.3,3641.7,0.02745659]
[1733272626670,1.363,3642.3,3641.7,2.77341631]
[1733272626818,1.363,3642.3,3641.2,2.74634]
[1733272627157,1.363,3642.3,3641.3,0.3687672]
[1733272627365,1.363,3642.3,3640.7,3.0]
[1733272627366,1.363,3642.3,3640.6,1.3565]
[1733272627526,1.363,3642.3,3641.4,2.74617]
[1733272627723,1.363,3642.3,3641.1,2.74635]
[1733272628065,1.363,3642.3,3640.6,1.3565]
[1733272628238,1.3361,3642.1,3640.6,4.10329]
[1733272628433,1.3361,3641.9,3640.8,2.74657]
[1733272628759,1.3361,3641.9,3640.9,0.410307]
[1733272629165,1.3361,3641.9,3640.6,4.10327]
[1733272629330,1.3361,3641.9,3640.6,2.74677]
[1733272629530,1.3361,3641.9,3640.3,1.4228]
[1733272629725,1.3361,3641.9,3640.8,2.74662]
[1733272632362,1.3361,3641.9,3640.3,1.4228]
[1733272632568,1.4438,3641.6,3640.1,3.04717]
[1733272632775,1.3636,3641.1,3639.9,2.74731]
[1733272632932,1.3636,3641.1,3639.5,1.3274]
[1733272632933,4.11003,3641.1,3639.7,2.74746]
[1733272633127,4.11003,3641.1,3639.8,0.26081204]
[1733272633346,4.521033,3641.1,3639.9,0.3008272]
[1733272633743,1.774603,3641.1,3639.9,3.0481472]
[1733272634146,1.774603,3641.1,3639.9,0.3008272]
[1733272634368,1.3636,3642.3,3640.2,2.7471]
[1733272634567,1.3636,3642.3,3640.1,1.3274]
[1733272634568,1.3636,3642.3,3641.8,2.74588]
[1733272634772,1.3636,3642.3,3640.9,3.02745588]
[1733272635075,0.28642189,3642.2,3642.1,2.74564]
[1733272635236,1.3636,3643.2,3641.7,1.3274]
[1733272635431,0.28633894,3642.2,3641.9,2.74581]
[1733272635675,1.3636,3643.2,3642.1,2.74566]
[1733272635876,1.3636,3643.2,3642.2,0.29782131]
[1733272636034,0.28632565,3642.8,3642.7,2.74521]
[1733272636229,1.3967,3643.5,3642.7,2.74521]
[1733272637168,1.3967,3643.5,3642.5,1.42154764]
[1733272637372,1.3967,3643.5,3642.8,2.74509]
[1733272637974,1.3967,3643.5,3642.6,2.74527]
[1733272639177,1.3967,3643.5,3642.5,0.16919213]
[1733272639479,1.3967,3643.5,3642.2,0.29782131]
[1733272639480,1.3967,3643.5,3642.4,2.74542]
[1733272639831,1.3967,3643.5,3642.2,0.29782131]
[1733272640029,1.3967,3643.5,3642.7,2.74519]
[1733272640658,1.3967,3643.5,3642.1,1.4532]
[1733272640959,1.3967,3643.5,3642.6,2.74528]
[1733272641160,1.3967,3643.5,3642.2,3.21737538]
[1733272641328,4.14132,3643.5,3642.3,0.21577227]
[1733272641533,1.3967,3643.5,3642.4,0.44145523]
[1733272642134,1.3967,3643.5,3642.1,1.4532]
[1733272642330,1.3967,3643.5,3642.2,0.24322198]
[1733272642568,1.3967,3643.5,3642.5,3.0]
[1733272642781,1.3967,3643.5,3642.5,0.21577227]
[1733272642937,1.3967,3643.5,3642.2,3.0]
[1733272642938,1.3967,3643.5,3642.2,2.74558]
[1733272643128,4.14131,3643.5,3642.3,0.67305093]
[1733272643330,1.3967,3643.5,3642.4,0.21744542]
[1733272644189,1.3967,3643.5,3642.4,2.96287542]
[1733272644493,4.14133,3643.5,3642.4,0.21744542]
[1733272644653,2.74388,3644.5,3641.3,1.4443]
[1733272644654,1.324,3642.9,3641.3,1.4443]
[1733272644855,4.06907,3642.9,3641.3,1.4443]
[1733272645092,1.324,3642.9,3641.9,2.74578]
[1733272645805,1.3909,3642.7,3641.5,2.7461]
[1733272646153,4.13611,3642.7,3641.5,2.7461]
[1733272646360,1.3909,3642.7,3641.6,0.41904]
[1733272646591,2.74575,3642.0,3640.4,1.3367]
[1733272646762,1.3255,3641.9,3640.5,0.21750239]
[1733272647052,1.3255,3641.9,3640.9,2.74656]
[1733272648059,1.3255,3641.9,3641.0,2.74649]
[1733272648255,1.3255,3641.9,3640.7,2.74666]
[1733272648655,1.3255,3641.9,3640.4,1.3367]
[1733272648871,1.3255,3641.9,3640.9,2.74656]
[1733272649207,0.28638144,3641.8,3641.0,0.274656]
[1733272649861,0.28638144,3641.8,3640.8,2.74664]
[1733272650056,0.28638144,3641.8,3640.9,2.74655]
[1733272650684,0.28638144,3641.8,3640.4,1.3367]
[1733272650685,0.28638144,3641.8,3640.7,2.74667]
[1733272650886,0.28638144,3641.8,3640.8,0.274667]
[1733272651295,0.28638144,3641.8,3640.6,3.0]
[1733272651472,0.28638144,3641.8,3640.7,2.98990379]
[1733272651671,0.28638144,3641.8,3640.8,0.21573187]
[1733272652062,0.28638144,3641.8,3640.9,0.02745998]
[1733272652390,0.28638144,3641.8,3641.7,2.74597]
[1733272652595,0.28638144,3641.8,3641.7,3.23629887]
[1733272652899,1.4284,3642.3,3641.9,2.74577]
[1733272653197,1.4284,3642.3,3641.7,0.274597]
[1733272653566,1.4284,3642.3,3641.7,2.74596]
[1733272654794,1.4284,3642.3,3641.4,2.74612]
[1733272655135,1.4284,3642.3,3640.4,2.84692]
[1733272655136,1.3792,3642.1,3640.9,2.74656]
[1733272655286,2.74577,3642.0,3640.6,2.74672]
[1733272655491,1.3792,3641.9,3640.5,1.4558]
[1733272655833,1.3792,3641.9,3639.7,3.13101082]
[1733272655834,1.3792,3641.2,3639.7,1.4558]
[1733272655989,1.3792,3641.2,3639.9,2.74725]
[1733272656194,1.3792,3641.2,3639.7,1.4558]
[1733272656411,1.3168,3641.1,3639.8,0.21824352]
[1733272656609,1.3168,3641.1,3639.9,0.16740435]
[1733272656833,4.06323,3641.1,3639.9,0.16740435]
[1733272656998,1.3168,3641.0,3639.9,2.91471435]
[1733272657196,1.3168,3641.0,3639.9,0.16740435]
[1733272657442,1.3168,3641.0,3640.2,2.7471]
[1733272657655,1.3168,3641.0,3640.3,0.27471]
[1733272658345,1.3168,3641.0,3640.4,2.74693]
[1733272658849,1.3168,3641.0,3640.3,0.27471]
[1733272658850,1.3168,3641.0,3640.5,0.21220024]
[1733272659004,1.3168,3641.0,3640.5,2.74683]
[1733272659953,1.3168,3641.0,3639.9,0.16740435]
[1733272660307,1.3168,3641.0,3640.0,3.20950044]
[1733272660607,1.3168,3641.0,3640.0,0.46232044]
[1733272660813,4.0633,3641.0,3640.0,0.46232044]
[1733272661236,1.3168,3641.0,3640.0,3.20956044]
[1733272661742,1.3168,3641.0,3640.1,2.74716]
[1733272661951,1.3168,3641.0,3640.2,0.32094804]
[1733272662508,1.3168,3641.0,3640.2,3.06799804]
[1733272662715,1.3168,3641.0,3640.2,0.32094804]
[1733272663030,1.3168,3641.0,3639.8,2.74732]
[1733272663366,1.3168,3641.0,3640.0,2.74718]
[1733272663946,2.74658,3640.9,3639.6,3.0]
[1733272664252,1.4303,3640.6,3639.4,2.74769]
[1733272664455,1.4303,3640.6,3639.0,4.06906]
[1733272664655,1.4303,3640.6,3639.5,2.74759]
[1733272664856,1.4303,3640.6,3639.6,2.74754]
[1733272665747,1.4303,3640.6,3639.4,2.7477]
[1733272666055,1.4303,3640.6,3639.1,3.154786]
[1733272666349,3.13101082,3641.0,3639.3,2.74772]
[1733272666350,1.4198,3640.4,3639.3,2.74772]
[1733272666564,2.74712,3640.2,3639.1,3.154776]
[1733272666849,1.4198,3639.9,3638.8,2.74814]
[1733272667238,1.4198,3639.8,3638.5,2.74834]
[1733272667427,1.4198,3639.6,3638.5,0.274834]
[1733272667630,1.4198,3639.3,3638.2,2.74859]
[1733272667941,1.4198,3639.3,3638.3,0.274859]
[1733272668342,1.4198,3639.2,3637.6,0.43008053]
[1733272668562,1.4198,3639.2,3638.0,2.74868]
[1733272668745,1.4198,3639.2,3637.6,3.17907053]
[1733272669058,1.4198,3639.2,3638.6,2.74823]
[1733272669228,1.4198,3639.2,3637.9,1.345]
[1733272669436,1.4198,3639.2,3638.6,2.74824]
[1733272669632,1.4198,3639.2,3638.8,2.74812]
[1733272669835,1.4198,3639.2,3638.8,2.74815]
[1733272670078,0.2864934,3639.1,3638.8,2.74815]
[1733272670433,0.2864934,3639.1,3639.0,2.748]
[1733272672235,0.2864934,3639.1,3638.8,2.74813]
[1733272672422,0.2864934,3639.1,3638.2,3.0]
[1733272672623,0.2864934,3639.1,3639.0,2.748]
[1733272678133,3.4e-06,3639.1,3639.0,7.32309162]
[1733272678467,3.4e-06,3639.1,3639.0,8.64606761]
[1733272679167,3.4e-06,3639.1,3639.0,7.24056761]
[1733272679931,3.4e-06,3639.1,3639.0,8.64966761]
[1733272680431,3.4e-06,3639.1,3639.0,7.24056761]
[1733272680837,3.4e-06,3639.1,3639.0,7.07097599]
[1733272681034,3.4e-06,3639.1,3639.0,4.07097599]
[1733272681250,3.4e-06,3639.1,3639.0,2.748]
[1733272682633,3.4e-06,3639.1,3634.0,2.13241292]
[1733272682634,3.4e-06,3639.1,3637.8,1.3338]
[1733272682836,1.4105,3639.0,3638.2,2.74855]
[1733272683232,1.4105,3639.0,3637.6,2.74905]
[1733272683437,1.4105,3639.0,3636.5,3.13101082]
[1733272683438,2.74834,3638.6,3637.3,2.74927]
[1733272683639,2.74834,3638.6,3637.4,2.7492]
[1733272683640,1.4105,3638.5,3637.4,2.7492]
[1733272684186,4.15888,3638.5,3637.4,2.7492]
[1733272684483,4.15888,3638.5,3637.0,0.408339]
[1733272684484,1.4105,3638.4,3637.3,2.74925]
[1733272684684,1.4105,3638.4,3637.4,2.74921]
[1733272684978,1.4105,3638.3,3637.4,2.74921]
[1733272685177,1.4105,3638.3,3637.1,0.3157929]
[1733272685382,1.4105,3638.3,3637.2,2.74935]
[1733272686165,1.4105,3638.2,3637.2,2.74935]
[1733272686785,1.4105,3638.2,3636.5,1.3338]
[1733272687080,1.4105,3638.2,3637.4,2.74921]
[1733272687685,1.4105,3638.2,3636.6,2.74982]
[1733272687892,1.4105,3638.2,3636.7,0.16080498]
[1733272688187,1.4105,3638.2,3637.4,2.74916]
[1733272688354,1.4105,3638.2,3636.6,0.78775724]
[1733272688563,1.4105,3638.2,3636.7,2.7772307]
[1733272688763,1.4105,3638.2,3637.6,2.74903]
[1733272689268,1.4105,3638.2,3637.1,2.74941]
[1733272689486,1.4105,3638.2,3637.3,2.74922]
[1733272689684,1.4105,3638.2,3637.4,2.74919]
[1733272690786,1.4105,3638.2,3637.2,2.74936]
[1733272690962,1.55015,3638.1,3637.2,2.74936]
[1733272691159,2.88973,3638.1,3636.8,2.74965]
[1733272691348,1.4091,3637.9,3636.8,2.74965]
[1733272691860,3.037743,3638.0,3635.8,3.18067726]
[1733272691861,2.74901,3637.7,3636.6,2.74981]
[1733272692077,1.3984,3637.5,3636.4,2.74996]
[1733272692375,1.3984,3637.5,3635.8,1.74945726]
[1733272692376,1.3984,3637.5,3636.0,2.75027]
[1733272692572,1.3984,3637.5,3636.1,3.32135269]
[1733272692798,1.3984,3637.5,3637.3,2.74929]
[1733272693602,1.3984,3637.5,3636.6,1.4382]
[1733272693815,1.3984,3637.5,3636.7,0.15909005]
[1733272694105,1.58163606,3638.4,3637.0,2.74951]
[1733272694287,1.3682,3638.4,3638.0,2.74875]
[1733272694598,1.3682,3638.4,3637.7,2.74895]
[1733272695109,1.3682,3638.4,3637.7,0.274895]
[1733272695431,1.3682,3638.4,3638.0,2.74872]
[1733272695718,1.3682,3638.4,3637.7,0.274895]
[1733272695719,1.3682,3638.4,3638.1,2.74868]
[1733272696301,1.3682,3638.4,3637.1,1.3628]
[1733272696302,1.3682,3638.4,3637.7,2.74894]
[1733272696487,1.3682,3638.4,3637.8,2.7489]
[1733272696915,1.3682,3638.4,3636.9,2.74959]
[1733272697206,1.373,3638.2,3637.5,2.74911]
[1733272697410,1.373,3638.2,3637.0,0.60402998]
[1733272697695,1.373,3638.0,3637.1,2.74944]
[1733272697900,1.373,3638.0,3636.5,4.17737]
[1733272698123,1.373,3637.8,3636.8,2.74965]
[1733272698267,1.373,3637.8,3636.1,1.4275]
[1733272698268,1.373,3637.7,3636.1,1.4275]
[1733272698464,1.373,3637.7,3636.6,2.7498]
[1733272698666,1.373,3637.7,3636.1,1.4275]
[1733272698920,3.13101082,3638.1,3636.1,2.75019]
[1733272698921,1.3441,3637.6,3636.1,2.75019]
[1733272699212,1.3441,3637.4,3636.2,0.29251357]
[1733272699365,1.3441,3637.4,3636.4,2.74993]
[1733272699566,1.3441,3637.3,3635.9,0.17494573]
[1733272699772,1.396,3637.2,3635.9,0.17494573]
[1733272700001,1.396,3637.1,3636.2,2.75011]
[1733272700366,4.14545,3637.1,3635.9,2.75032]
[1733272700568,1.3319,3637.0,3636.1,2.75019]
[1733272700861,1.3319,3636.8,3636.1,2.75019]
[1733272701361,1.3319,3636.8,3636.1,2.75012]
[1733272701806,1.3319,3636.8,3635.4,1.3637]
[1733272702104,1.3319,3636.8,3636.1,2.75019]
[1733272702866,1.3319,3636.8,3635.3,2.75073]
[1733272703069,1.51915429,3636.7,3635.7,2.75046]
[1733272703305,1.3685,3636.7,3635.7,2.75046]
[1733272703606,1.3685,3636.7,3635.5,2.75065]
[1733272703789,1.3685,3636.7,3635.4,3.05067]
[1733272703790,1.3685,3636.7,3635.6,0.1697812]
[1733272703965,1.3685,3636.7,3635.9,2.75027]
[1733272704776,1.3685,3636.7,3635.3,2.7508]
[1733272705004,1.4354,3636.5,3635.0,4.3319]
[1733272705216,1.4354,3636.5,3635.0,1.3319]
[1733272705391,1.4354,3636.5,3635.4,2.7507]
[1733272705617,1.4354,3636.5,3635.0,1.3319]
[1733272705618,1.4354,3636.5,3635.2,2.75088]
[1733272705766,1.4354,3636.5,3635.6,2.7505]
[1733272706370,1.4354,3636.5,3635.4,2.75072]
[1733272706610,1.4026,3636.4,3635.4,2.75072]
[1733272706910,1.4026,3636.4,3635.2,2.75083]
[1733272707568,1.4026,3636.4,3635.3,2.7508]
[1733272707770,1.4026,3636.4,3635.4,2.75069]
[1733272707984,1.4401,3636.2,3635.4,2.75069]
[1733272708616,1.4401,3636.2,3634.9,2.7511]
[1733272709095,1.4401,3636.2,3634.8,0.45291108]
[1733272709096,1.4401,3636.2,3635.2,2.75087]
[1733272709275,1.3162,3636.0,3635.2,2.75087]
[1733272709610,1.3162,3636.0,3634.3,4.4393]
[1733272709611,1.3162,3636.0,3634.9,2.7511]
[1733272709917,1.3162,3636.0,3634.9,2.75108]
[1733272710574,1.3162,3636.0,3635.1,2.75091]
[1733272710919,1.3162,3636.0,3634.9,2.7511]
[1733272711097,2.7502,3636.1,3634.6,2.75127]
[1733272711098,1.3942,3635.8,3634.6,2.75127]
[1733272711267,1.3942,3635.8,3634.8,2.75118]
[1733272711487,1.3466,3635.6,3634.8,2.75118]
[1733272711998,1.3466,3635.6,3634.9,2.75109]
[1733272713073,1.3466,3635.6,3634.4,2.75148]
[1733272713274,1.3466,3635.6,3635.1,2.75088]
[1733272713476,1.3466,3635.6,3635.2,2.75087]
[1733272713674,1.3466,3635.6,3635.2,0.00629989]
[1733272714003,3.13101082,3635.3,3635.2,0.00629989]
[1733272714206,7.6965719,3635.3,3635.2,0.00629989]
[1733272714408,1.367,3635.2,3634.1,2.7517]
[1733272714589,1.3765,3634.9,3633.3,2.75231]
[1733272714917,3.13101082,3634.5,3633.0,2.75249]
[1733272715082,1.3765,3634.3,3632.4,1.4577]
[1733272715314,1.3765,3634.3,3633.3,2.7523]
[1733272716158,1.58953607,3634.3,3632.7,2.75277]
[1733272716447,1.3765,3634.3,3633.5,2.7521]
[1733272716871,1.3765,3634.3,3633.6,2.75208]
[1733272717159,0.2868808,3634.2,3632.6,2.75284]
[1733272717323,0.2868808,3634.2,3633.4,2.75223]
[1733272717538,1.06631996,3634.2,3633.4,2.75223]
[1733272717821,1.06631996,3634.2,3633.5,2.75214]
[1733272718029,1.06631996,3634.2,3633.5,2.75209]
[1733272718319,1.06631996,3634.2,3633.3,2.75229]
[1733272718520,1.3809,3634.0,3632.9,2.75259]
[1733272719063,1.59350391,3634.0,3632.7,2.75275]
[1733272719269,1.3809,3633.8,3632.7,2.75275]
[1733272719780,1.59333325,3633.8,3632.7,2.75275]
[1733272719952,1.3809,3633.6,3633.0,2.75252]
[1733272720158,1.3809,3633.6,3632.5,2.75287]
[1733272720492,0.13809,3633.5,3632.8,2.75265]
[1733272720850,1.3728,3633.4,3632.8,2.75265]
[1733272721056,1.3728,3633.4,3632.9,2.75262]
[1733272721388,1.3728,3633.4,3632.4,2.75299]
[1733272721688,1.3728,3633.4,3632.8,2.75268]
[1733272721852,4.50381082,3633.3,3632.3,2.753]
[1733272722187,1.3728,3633.0,3631.5,3.029031]
[1733272722387,1.3728,3632.7,3631.7,2.75347]
[1733272722589,4.3992,3632.6,3631.7,0.275347]
[1733272722743,1.3992,3632.6,3632.1,2.75319]
[1733272723388,1.3992,3632.3,3631.2,2.75386]
[1733272723597,1.3992,3632.3,3630.7,2.75425]
[1733272723894,5.753,3632.4,3631.0,2.75398]
[1733272723895,1.3955,3632.1,3631.0,2.75398]
[1733272724185,1.3955,3632.1,3630.8,0.350425]
[1733272724342,1.3955,3632.1,3631.0,2.75403]
[1733272724539,1.3955,3631.9,3630.7,2.75423]
[1733272724743,3.0,3631.9,3630.8,2.75419]
[1733272724978,4.407,3631.8,3631.0,2.75401]
[1733272725180,2.02010108,3631.8,3631.0,2.75401]
[1733272726550,1.407,3631.8,3630.5,2.75437]
[1733272726758,0.28690387,3631.7,3631.5,2.75367]
[1733272727171,0.28690387,3631.7,3631.3,2.75382]
[1733272727496,0.28690387,3631.7,3631.4,2.75369]
[1733272728048,0.28690387,3631.7,3631.1,2.75398]
[1733272728368,1.339,3631.6,3630.7,2.75421]
[1733272729345,1.339,3631.6,3630.8,2.75421]
[1733272729573,1.339,3631.6,3630.5,2.75437]
[1733272729746,1.3632,3631.6,3630.6,3.50434]
[1733272730336,3.0,3631.6,3630.6,0.75]
[1733272730460,1.4116,3631.4,3630.6,0.75]
[1733272730843,1.4116,3631.4,3630.9,2.75411]
[1733272731067,1.4116,3631.4,3631.3,2.75383]
[1733272732293,1.4116,3631.4,3630.6,0.75]
[1733272732893,3.0,3632.0,3630.6,0.75]
[1733272732894,3.0,3631.2,3630.6,0.75]
[1733272733054,1.4028,3631.1,3630.6,0.75]
[1733272734600,1.4028,3631.1,3630.6,3.50433]
[1733272734805,0.28700211,3631.2,3630.6,0.75]
[1733272735093,0.28700211,3631.2,3631.1,2.75398]
[1733272735997,1.3391,3631.5,3631.2,2.75389]
[1733272736490,1.3391,3631.5,3631.3,2.7538]
[1733272736692,0.28697034,3631.4,3631.3,2.7538]
[1733272737011,1.4146,3632.0,3631.7,2.75352]
[1733272737212,1.70155662,3632.0,3631.7,2.75352]
[1733272737502,1.70155662,3632.0,3631.8,2.75342]
[1733272737847,1.70155662,3632.0,3631.9,2.75337]
[1733272738002,1.70155662,3632.0,3630.9,1.4254]
[1733272738003,1.70155662,3632.0,3631.7,2.75352]
[1733272738358,1.70155662,3632.0,3631.8,2.75344]
[1733272738793,1.70155662,3632.0,3630.9,1.4254]
[1733272738955,1.70155662,3632.0,3631.6,2.75356]
[1733272739456,1.70155662,3632.0,3631.2,2.75391]
[1733272739657,1.70155662,3632.0,3631.5,2.75365]
[1733272739854,1.70155662,3632.0,3631.1,2.75398]
[1733272740065,1.70155662,3632.0,3631.6,2.7536]
[1733272741008,1.89287249,3632.0,3630.6,2.1768]
[1733272741296,1.53130208,3631.9,3630.9,2.75408]
[1733272741470,0.21160208,3631.8,3630.9,2.75408]
[1733272741684,1.3197,3631.7,3630.9,2.75408]
[1733272741913,0.212296,3631.6,3630.6,0.75]
[1733272742380,0.212296,3631.5,3631.1,2.75396]
[1733272742579,1.3197,3631.7,3631.2,2.7539]
[1733272743024,0.21250167,3631.6,3630.6,0.75]
[1733272743182,0.28695662,3632.0,3631.8,2.75338]
[1733272743377,0.21274158,3631.9,3631.0,2.75406]
[1733272743624,0.28696647,3632.0,3631.1,0.410436]
[1733272743912,0.21277652,3631.9,3630.8,2.75414]
[1733272744096,0.34038652,3631.9,3630.8,2.75414]
[1733272744411,1.381,3631.7,3630.8,2.75414]
[1733272744616,0.34038652,3631.6,3630.8,2.75414]
[1733272744921,1.381,3631.7,3630.7,0.350451]
[1733272744922,1.381,3631.7,3631.2,2.7539]
[1733272745082,0.33966182,3631.6,3631.2,2.7539]
[1733272745277,0.33990286,3631.5,3631.2,2.7539]
[1733272745527,1.381,3631.7,3631.3,2.75382]
[1733272745735,0.3399023,3631.6,3630.8,0.5250981]
[1733272746013,0.28696647,3632.0,3631.2,2.75386]
[1733272746226,0.33990634,3631.9,3631.2,2.75386]
[1733272746522,0.28696647,3632.0,3630.6,0.75]
[1733272746523,1.71830634,3631.8,3630.8,2.75419]
[1733272746690,0.28696647,3632.0,3630.9,2.75412]
[1733272746691,1.3784,3631.6,3630.9,2.75412]
[1733272746890,0.33990634,3631.5,3630.6,0.75]
[1733272747090,0.33990634,3631.4,3630.6,0.75]
[1733272747425,0.33990634,3631.3,3630.6,0.75]
[1733272747626,0.33990634,3631.2,3630.6,0.75]
[1733272747774,1.7329693,3631.6,3631.1,2.75398]
[1733272747974,0.3404443,3631.5,3630.6,3.50431]
[1733272748199,0.3404443,3631.4,3630.9,2.75412]
[1733272748408,1.3272,3631.2,3630.6,0.75]
[1733272748590,1.3272,3631.0,3630.6,0.75]
[1733272748787,0.3404443,3630.9,3630.6,0.75]
[1733272749025,0.3404443,3630.8,3630.6,0.75]
[1733272749517,0.3404443,3630.7,3630.6,0.75]
[1733272750032,1.7488443,3630.7,3630.6,0.75]
[1733272751296,1.92372873,3630.7,3630.6,0.75]
[1733272752509,1.7488443,3630.7,3630.6,0.75]
[1733272753139,0.3404443,3630.7,3630.6,3.50436]
[1733272753444,3.41797729,3632.0,3630.6,3.50436]
[1733272753445,1.3929,3631.9,3630.6,0.75]
[1733272753607,0.50958238,3631.8,3631.2,2.75386]
[1733272753807,0.34159573,3631.7,3631.2,2.7539]
[1733272754119,0.34159573,3631.6,3630.6,0.96838]
[1733272754441,1.4201,3631.4,3630.6,0.96838]